[Event "Titled Tuesday Blitz June 21 Late 2022"]
[White "Bjelobrk, Igor"]
[Black "Vujic, Mihailo"]
[WhiteFideId "4300726"]
[BlackFideId "918873"]
[WhiteElo "2335"]
[BlackElo "2256"]
[Result "1-0"]
[Round "09"]
[TimeControl "180+1"]
[Date "2022.06.21"]
[WhiteClock "0:00:56"]
[BlackClock "0:00:10"]

1. Nf3 {[%clk 0:03:00]}  Nc6 {[%clk 0:02:58]} 2. e3 {[%clk 0:02:59]}  d5 {[%clk 0:02:57]} 3. Bb5 {[%clk 0:02:57]}  Bg4 {[%clk 0:02:54]} 4. c4 {[%clk 0:02:56]}  dxc4 {[%clk 0:02:52]} 5. Qa4 {[%clk 0:02:32]}  Bxf3 {[%clk 0:02:48]} 6. gxf3 {[%clk 0:02:31]}  Qd5 {[%clk 0:02:41]} 7. e4 {[%clk 0:02:01]}  Qd6 {[%clk 0:02:28]} 8. Na3 {[%clk 0:01:54]}  e6 {[%clk 0:01:41]} 9. Nxc4 {[%clk 0:01:52]}  Qc5 {[%clk 0:00:48]} 10. d4 {[%clk 0:01:50]}  Qb4+ {[%clk 0:00:47]} 11. Bd2 {[%clk 0:01:50]}  Qxa4 {[%clk 0:00:45]} 12. Bxa4 {[%clk 0:01:51]}  O-O-O {[%clk 0:00:35]} 13. Bxc6 {[%clk 0:01:50]}  bxc6 {[%clk 0:00:36]} 14. Bc3 {[%clk 0:01:50]}  Nf6 {[%clk 0:00:32]} 15. Ne5 {[%clk 0:01:48]}  c5 {[%clk 0:00:18]} 16. dxc5 {[%clk 0:01:46]}  Bxc5 {[%clk 0:00:16]} 17. Nxf7 {[%clk 0:01:44]}  Nh5 {[%clk 0:00:13]} 18. Nxh8 {[%clk 0:01:43]}  Rxh8 {[%clk 0:00:12]} 19. Be5 {[%clk 0:01:37]}  Rf8 {[%clk 0:00:07]} 20. Ke2 {[%clk 0:01:37]}  Bd6 {[%clk 0:00:07]} 21. Bxd6 {[%clk 0:01:36]}  cxd6 {[%clk 0:00:08]} 22. Rhg1 {[%clk 0:01:32]}  Kd7 {[%clk 0:00:06]} 23. Rac1 {[%clk 0:01:31]}  e5 {[%clk 0:00:05]} 24. Rc3 {[%clk 0:01:29]}  Ke6 {[%clk 0:00:05]} 25. Ra3 {[%clk 0:01:29]}  Rc8 {[%clk 0:00:04]} 26. Rd1 {[%clk 0:01:24]}  Nf4+ {[%clk 0:00:04]} 27. Kd2 {[%clk 0:01:22]}  Rc4 {[%clk 0:00:03]} 28. b3 {[%clk 0:01:17]}  Rd4+ {[%clk 0:00:03]} 29. Kc2 {[%clk 0:01:17]}  Rxd1 {[%clk 0:00:02]} 30. Kxd1 {[%clk 0:01:18]}  g5 {[%clk 0:00:01]} 31. Rxa7 {[%clk 0:01:17]}  h5 {[%clk 0:00:02]} 32. a4 {[%clk 0:01:14]}  g4 {[%clk 0:00:01]} 33. fxg4 {[%clk 0:01:14]}  hxg4 {[%clk 0:00:02]} 34. Rg7 {[%clk 0:01:13]}  Nd3 {[%clk 0:00:02]} 35. Ke2 {[%clk 0:01:09]}  Nc5 {[%clk 0:00:02]} 36. Ke3 {[%clk 0:01:08]}  Nxb3 {[%clk 0:00:02]} 37. Rxg4 {[%clk 0:01:08]}  Nd4 {[%clk 0:00:02]} 38. h4 {[%clk 0:01:05]}  Nc2+ {[%clk 0:00:02]} 39. Kd2 {[%clk 0:01:03]}  Nb4 {[%clk 0:00:03]} 40. h5 {[%clk 0:01:02]}  Nc6 {[%clk 0:00:03]} 41. h6 {[%clk 0:01:02]}  Nd4 {[%clk 0:00:04]} 42. h7 {[%clk 0:01:01]}  Nf3+ {[%clk 0:00:05]} 43. Ke3 {[%clk 0:01:01]}  Ng5 {[%clk 0:00:05]} 44. Rxg5 {[%clk 0:01:01]}  d5 {[%clk 0:00:06]} 45. exd5+ {[%clk 0:01:00]}  Kxd5 {[%clk 0:00:06]} 46. h8=Q {[%clk 0:01:00]}  Kc4 {[%clk 0:00:05]} 47. Qc8+ {[%clk 0:00:59]}  Kb3 {[%clk 0:00:06]} 48. Rxe5 {[%clk 0:00:59]}  Ka2 {[%clk 0:00:07]} 49. a5 {[%clk 0:00:58]}  Ka3 {[%clk 0:00:08]} 50. a6 {[%clk 0:00:58]}  Ka4 {[%clk 0:00:09]} 51. a7 {[%clk 0:00:57]}  Kb4 {[%clk 0:00:08]} 52. Re7 {[%clk 0:00:56]}  Kb3 {[%clk 0:00:09]} 53. Rb7+ {[%clk 0:00:56]}  Ka4 {[%clk 0:00:10]} 54. a8=Q# {[%clk 0:00:56]} 1-0


[Site "https://www.chess.com"]

[Event "Titled Tuesday Blitz June 21 Late 2022"]
[White "Desideri, Ricardo Maruchi"]
[Black "Zhang, Alan"]
[WhiteFideId "2110440"]
[BlackFideId "30936870"]
[WhiteElo "1945"]
[BlackElo "2067"]
[Result "0-1"]
[Round "09"]
[TimeControl "180+1"]
[Date "2022.06.22"]
[WhiteClock "0:01:49"]
[BlackClock "0:00:27"]

1. e4 {[%clk 0:03:00]}  e5 {[%clk 0:02:58]} 2. Nf3 {[%clk 0:03:00]}  Nc6 {[%clk 0:02:57]} 3. Bc4 {[%clk 0:03:00]}  Bc5 {[%clk 0:02:56]} 4. b4 {[%clk 0:02:58]}  Bxb4 {[%clk 0:02:53]} 5. c3 {[%clk 0:02:58]}  Ba5 {[%clk 0:02:54]} 6. d4 {[%clk 0:02:58]}  exd4 {[%clk 0:02:52]} 7. Qb3 {[%clk 0:02:54]}  Qe7 {[%clk 0:02:25]} 8. O-O {[%clk 0:02:54]}  d6 {[%clk 0:02:08]} 9. Nxd4 {[%clk 0:02:48]}  Nxd4 {[%clk 0:01:59]} 10. cxd4 {[%clk 0:02:48]}  Bb6 {[%clk 0:01:59]} 11. Bb2 {[%clk 0:02:42]}  Nf6 {[%clk 0:01:18]} 12. e5 {[%clk 0:02:41]}  dxe5 {[%clk 0:01:18]} 13. dxe5 {[%clk 0:02:40]}  Ne4 {[%clk 0:01:18]} 14. Bxf7+ {[%clk 0:01:58]}  Qxf7 {[%clk 0:01:14]} 15. Qa4+ {[%clk 0:01:57]}  Bd7 {[%clk 0:01:11]} 16. Qxe4 {[%clk 0:01:57]}  O-O {[%clk 0:01:09]} 17. Bd4 {[%clk 0:01:51]}  Bc6 {[%clk 0:00:29]} 18. Qe3 {[%clk 0:01:49]}  Qd5 {[%clk 0:00:27]} 0-1


[Site "https://www.chess.com"]

[Event "Titled Tuesday Blitz June 21 Late 2022"]
[White "Diaz Rosas, Julio Cesar"]
[Black "Wagner, Dinara"]
[WhiteFideId "5105099"]
[BlackFideId "24157570"]
[WhiteElo "2278"]
[BlackElo "2216"]
[Result "1-0"]
[Round "09"]
[TimeControl "180+1"]
[Date "2022.06.21"]
[WhiteClock "0:00:14"]
[BlackClock "0:00:06"]

1. d4 {[%clk 0:03:00]}  Nf6 {[%clk 0:02:59]} 2. c4 {[%clk 0:02:59]}  e6 {[%clk 0:02:59]} 3. Nc3 {[%clk 0:02:59]}  Bb4 {[%clk 0:02:59]} 4. a3 {[%clk 0:02:58]}  Bxc3+ {[%clk 0:02:58]} 5. bxc3 {[%clk 0:02:59]}  c5 {[%clk 0:02:56]} 6. e3 {[%clk 0:02:59]}  b6 {[%clk 0:02:49]} 7. Bd3 {[%clk 0:02:54]}  Nc6 {[%clk 0:02:43]} 8. Ne2 {[%clk 0:02:51]}  Ba6 {[%clk 0:02:42]} 9. e4 {[%clk 0:02:32]}  O-O {[%clk 0:02:32]} 10. O-O {[%clk 0:02:15]}  d6 {[%clk 0:02:32]} 11. Bg5 {[%clk 0:02:12]}  Rc8 {[%clk 0:02:25]} 12. Bh4 {[%clk 0:02:02]}  e5 {[%clk 0:02:06]} 13. Ng3 {[%clk 0:01:52]}  cxd4 {[%clk 0:02:01]} 14. Nh5 {[%clk 0:01:49]}  Kh8 {[%clk 0:01:48]} 15. f4 {[%clk 0:01:30]}  exf4 {[%clk 0:01:35]} 16. Nxf6 {[%clk 0:01:17]}  Ne5 {[%clk 0:01:18]} 17. Rxf4 {[%clk 0:01:08]}  Qc7 {[%clk 0:00:57]} 18. cxd4 {[%clk 0:00:52]}  Ng6 {[%clk 0:00:57]} 19. Qh5 {[%clk 0:00:40]}  h6 {[%clk 0:00:53]} 20. Rg4 {[%clk 0:00:33]}  Nxh4 {[%clk 0:00:45]} 21. Qxh4 {[%clk 0:00:31]}  Bxc4 {[%clk 0:00:37]} 22. Rxg7 {[%clk 0:00:17]}  Kxg7 {[%clk 0:00:37]} 23. Nh5+ {[%clk 0:00:17]}  Kh7 {[%clk 0:00:36]} 24. Rc1 {[%clk 0:00:16]}  Bxd3 {[%clk 0:00:25]} 25. Rxc7 {[%clk 0:00:17]}  Rxc7 {[%clk 0:00:25]} 26. h3 {[%clk 0:00:16]}  Rc2 {[%clk 0:00:19]} 27. Qf6 {[%clk 0:00:14]}  Rg8 {[%clk 0:00:19]} 28. g4 {[%clk 0:00:14]}  Bc4 {[%clk 0:00:17]} 29. d5 {[%clk 0:00:13]}  Rc1+ {[%clk 0:00:15]} 30. Kg2 {[%clk 0:00:14]}  Bd3 {[%clk 0:00:12]} 31. Qxf7+ {[%clk 0:00:13]}  Kh8 {[%clk 0:00:12]} 32. Nf6 {[%clk 0:00:14]}  Bxe4+ {[%clk 0:00:08]} 33. Nxe4 {[%clk 0:00:14]}  Rc2+ {[%clk 0:00:08]} 34. Kg3 {[%clk 0:00:14]}  Rgc8 {[%clk 0:00:06]} 35. Nf6 {[%clk 0:00:13]}  R2c3+ {[%clk 0:00:06]} 36. Kh4 {[%clk 0:00:14]}  R8c7 {[%clk 0:00:06]} 37. Qf8# {[%clk 0:00:14]} 1-0


[Site "https://www.chess.com"]

[Event "Titled Tuesday Blitz June 21 Late 2022"]
[White "Domingo Nunez, Alejandro"]
[Black "Kanyamarala, Tarun"]
[WhiteFideId "22245561"]
[BlackFideId "45004714"]
[WhiteElo "2215"]
[BlackElo "2219"]
[Result "1-0"]
[Round "09"]
[TimeControl "180+1"]
[Date "2022.06.21"]
[WhiteClock "0:01:57"]
[BlackClock "0:01:43"]

1. Nf3 {[%clk 0:03:00]}  d5 {[%clk 0:02:50]} 2. g3 {[%clk 0:02:58]}  b6 {[%clk 0:02:46]} 3. Bg2 {[%clk 0:02:58]}  Bb7 {[%clk 0:02:47]} 4. O-O {[%clk 0:02:58]}  e6 {[%clk 0:02:45]} 5. d4 {[%clk 0:02:57]}  Bd6 {[%clk 0:02:45]} 6. b3 {[%clk 0:02:56]}  Ne7 {[%clk 0:02:44]} 7. Bb2 {[%clk 0:02:57]}  O-O {[%clk 0:02:44]} 8. Nbd2 {[%clk 0:02:54]}  c5 {[%clk 0:02:37]} 9. c4 {[%clk 0:02:54]}  Nbc6 {[%clk 0:02:35]} 10. cxd5 {[%clk 0:02:49]}  exd5 {[%clk 0:02:35]} 11. dxc5 {[%clk 0:02:49]}  bxc5 {[%clk 0:02:34]} 12. Rc1 {[%clk 0:02:50]}  Qb6 {[%clk 0:02:27]} 13. Nc4 {[%clk 0:02:43]}  dxc4 {[%clk 0:02:27]} 14. Qxd6 {[%clk 0:02:43]}  cxb3 {[%clk 0:02:22]} 15. axb3 {[%clk 0:02:43]}  Qxb3 {[%clk 0:02:20]} 16. Ba1 {[%clk 0:02:31]}  Qd5 {[%clk 0:01:59]} 17. Qc7 {[%clk 0:02:12]}  Nd4 {[%clk 0:01:45]} 18. Bxd4 {[%clk 0:01:57]}  cxd4 {[%clk 0:01:43]} 19. Qxe7 {[%clk 0:01:57]} 1-0


[Site "https://www.chess.com"]

[Event "Titled Tuesday Blitz June 21 Late 2022"]
[White "Fiorito, Fabian"]
[Black "Vu, Bui Thi Thanh Van"]
[WhiteFideId "100200"]
[BlackFideId "12408921"]
[WhiteElo "2395"]
[BlackElo "1602"]
[Result "1/2-1/2"]
[Round "09"]
[TimeControl "180+1"]
[Date "2022.06.22"]
[WhiteClock "0:00:16"]
[BlackClock "0:00:06"]

1. e4 {[%clk 0:03:00]}  e6 {[%clk 0:02:59]} 2. d4 {[%clk 0:02:59]}  d5 {[%clk 0:02:59]} 3. Nd2 {[%clk 0:02:58]}  c5 {[%clk 0:02:58]} 4. Ngf3 {[%clk 0:02:58]}  Nf6 {[%clk 0:02:57]} 5. exd5 {[%clk 0:02:57]}  Qxd5 {[%clk 0:02:55]} 6. Bc4 {[%clk 0:02:56]}  Qd6 {[%clk 0:02:52]} 7. O-O {[%clk 0:02:56]}  cxd4 {[%clk 0:02:51]} 8. Nb3 {[%clk 0:02:56]}  Nc6 {[%clk 0:02:51]} 9. Nbxd4 {[%clk 0:02:56]}  Nxd4 {[%clk 0:02:51]} 10. Nxd4 {[%clk 0:02:56]}  a6 {[%clk 0:02:51]} 11. a4 {[%clk 0:02:52]}  Qc7 {[%clk 0:02:50]} 12. Be2 {[%clk 0:02:50]}  Bd6 {[%clk 0:02:49]} 13. h3 {[%clk 0:02:49]}  O-O {[%clk 0:02:48]} 14. c3 {[%clk 0:02:41]}  e5 {[%clk 0:02:42]} 15. Nb3 {[%clk 0:02:35]}  Be6 {[%clk 0:02:39]} 16. Be3 {[%clk 0:02:30]}  Rad8 {[%clk 0:02:37]} 17. Qc2 {[%clk 0:02:28]}  Nd5 {[%clk 0:02:32]} 18. Bd2 {[%clk 0:02:14]}  e4 {[%clk 0:02:17]} 19. Nd4 {[%clk 0:02:07]}  Rfe8 {[%clk 0:02:03]} 20. Nxe6 {[%clk 0:01:53]}  Rxe6 {[%clk 0:02:03]} 21. Bg4 {[%clk 0:01:53]}  Re7 {[%clk 0:01:44]} 22. Rae1 {[%clk 0:01:38]}  Rde8 {[%clk 0:01:43]} 23. Qb3 {[%clk 0:01:34]}  Nf6 {[%clk 0:01:41]} 24. Bg5 {[%clk 0:01:30]}  Be5 {[%clk 0:01:37]} 25. Re2 {[%clk 0:01:15]}  h6 {[%clk 0:01:29]} 26. Bh4 {[%clk 0:01:07]}  g5 {[%clk 0:01:27]} 27. Bg3 {[%clk 0:01:07]}  Nxg4 {[%clk 0:01:27]} 28. hxg4 {[%clk 0:01:07]}  Bxg3 {[%clk 0:01:25]} 29. fxg3 {[%clk 0:01:07]}  Qxg3 {[%clk 0:01:26]} 30. Ref2 {[%clk 0:01:07]}  Qe3 {[%clk 0:01:19]} 31. Kh1 {[%clk 0:01:06]}  Rf8 {[%clk 0:01:12]} 32. Qb4 {[%clk 0:01:06]}  Re6 {[%clk 0:01:08]} 33. Qxb7 {[%clk 0:01:03]}  f6 {[%clk 0:00:37]} 34. Qd5 {[%clk 0:01:02]}  Qb6 {[%clk 0:00:36]} 35. Rxf6 {[%clk 0:01:01]}  Re8 {[%clk 0:00:31]} 36. Rxh6 {[%clk 0:00:43]}  Kg7 {[%clk 0:00:25]} 37. Qxg5+ {[%clk 0:00:32]}  Rg6 {[%clk 0:00:20]} 38. Rxg6+ {[%clk 0:00:24]}  Qxg6 {[%clk 0:00:20]} 39. Qc5 {[%clk 0:00:21]}  Qxg4 {[%clk 0:00:15]} 40. Qc7+ {[%clk 0:00:20]}  Kh8 {[%clk 0:00:15]} 41. Qh2+ {[%clk 0:00:11]}  Kg7 {[%clk 0:00:14]} 42. Qc7+ {[%clk 0:00:12]}  Kh8 {[%clk 0:00:14]} 43. Qc5 {[%clk 0:00:12]}  e3 {[%clk 0:00:10]} 44. Rf8+ {[%clk 0:00:12]}  Rxf8 {[%clk 0:00:06]} 45. Qxf8+ {[%clk 0:00:13]}  Kh7 {[%clk 0:00:03]} 46. Qe7+ {[%clk 0:00:12]}  Kg6 {[%clk 0:00:04]} 47. Qxe3 {[%clk 0:00:12]}  Qd1+ {[%clk 0:00:04]} 48. Kh2 {[%clk 0:00:12]}  Qxa4 {[%clk 0:00:04]} 49. Qe6+ {[%clk 0:00:12]}  Kg7 {[%clk 0:00:03]} 50. Qe5+ {[%clk 0:00:12]}  Kg6 {[%clk 0:00:04]} 51. Qd5 {[%clk 0:00:13]}  Qh4+ {[%clk 0:00:03]} 52. Kg1 {[%clk 0:00:13]}  Qe1+ {[%clk 0:00:03]} 53. Kh2 {[%clk 0:00:14]}  Qh4+ {[%clk 0:00:04]} 54. Kg1 {[%clk 0:00:15]}  Qe1+ {[%clk 0:00:05]} 55. Kh2 {[%clk 0:00:16]}  Qh4+ {[%clk 0:00:06]} 1/2-1/2


[Site "https://www.chess.com"]

[Event "Titled Tuesday Blitz June 21 Late 2022"]
[White "Garriga Cazorla, Pere"]
[Black "Chigaev, Maksim"]
[WhiteFideId "32011601"]
[BlackFideId "4108116"]
[WhiteElo "2433"]
[BlackElo "2457"]
[Result "1-0"]
[Round "09"]
[TimeControl "180+1"]
[Date "2022.06.21"]
[WhiteClock "0:01:26"]
[BlackClock "0:00:43"]

1. d4 {[%clk 0:03:00]}  d5 {[%clk 0:02:57]} 2. c4 {[%clk 0:03:00]}  c6 {[%clk 0:02:58]} 3. Nf3 {[%clk 0:02:59]}  Nf6 {[%clk 0:02:58]} 4. Nc3 {[%clk 0:02:59]}  a6 {[%clk 0:02:56]} 5. e3 {[%clk 0:02:55]}  b5 {[%clk 0:02:54]} 6. b3 {[%clk 0:02:54]}  Bg4 {[%clk 0:02:50]} 7. Be2 {[%clk 0:02:51]}  e6 {[%clk 0:02:49]} 8. O-O {[%clk 0:02:51]}  Nbd7 {[%clk 0:02:44]} 9. h3 {[%clk 0:02:47]}  Bh5 {[%clk 0:02:43]} 10. a4 {[%clk 0:02:44]}  bxc4 {[%clk 0:02:37]} 11. bxc4 {[%clk 0:02:45]}  Bb4 {[%clk 0:02:37]} 12. Bd2 {[%clk 0:02:35]}  a5 {[%clk 0:02:36]} 13. cxd5 {[%clk 0:02:26]}  exd5 {[%clk 0:02:33]} 14. Ne5 {[%clk 0:02:18]}  Nxe5 {[%clk 0:02:03]} 15. dxe5 {[%clk 0:02:16]}  Bxc3 {[%clk 0:02:03]} 16. Bxc3 {[%clk 0:02:13]}  Bxe2 {[%clk 0:02:03]} 17. Qxe2 {[%clk 0:02:13]}  Ne4 {[%clk 0:02:04]} 18. Bb2 {[%clk 0:02:13]}  O-O {[%clk 0:02:04]} 19. Rfc1 {[%clk 0:02:13]}  Qd7 {[%clk 0:01:48]} 20. f3 {[%clk 0:01:47]}  Ng3 {[%clk 0:01:48]} 21. Qf2 {[%clk 0:01:45]}  Nf5 {[%clk 0:01:45]} 22. Rc2 {[%clk 0:01:44]}  h6 {[%clk 0:01:41]} 23. Rac1 {[%clk 0:01:41]}  Rfc8 {[%clk 0:01:41]} 24. g4 {[%clk 0:01:37]}  Ne7 {[%clk 0:01:41]} 25. Ba3 {[%clk 0:01:38]}  Ng6 {[%clk 0:01:14]} 26. f4 {[%clk 0:01:36]}  c5 {[%clk 0:01:01]} 27. Bxc5 {[%clk 0:01:33]}  Qxa4 {[%clk 0:01:01]} 28. Bd4 {[%clk 0:01:34]}  Rxc2 {[%clk 0:00:56]} 29. Rxc2 {[%clk 0:01:35]}  Ne7 {[%clk 0:00:55]} 30. f5 {[%clk 0:01:30]}  Nc6 {[%clk 0:00:55]} 31. f6 {[%clk 0:01:30]}  Nxd4 {[%clk 0:00:43]} 32. exd4 {[%clk 0:01:31]}  gxf6 {[%clk 0:00:43]} 33. exf6 {[%clk 0:01:26]} 1-0


[Site "https://www.chess.com"]

[Event "Titled Tuesday Blitz June 21 Late 2022"]
[White "Gimenez Aguirre, Alejo Ismael"]
[Black "Jiganchine, Roman"]
[WhiteFideId "32041667"]
[BlackFideId "2603667"]
[WhiteElo "2031"]
[BlackElo "2266"]
[Result "1-0"]
[Round "09"]
[TimeControl "180+1"]
[Date "2022.06.22"]
[WhiteClock "0:01:31"]
[BlackClock "0:00:25"]

1. e4 {[%clk 0:03:00]}  c6 {[%clk 0:02:59]} 2. d4 {[%clk 0:03:00]}  d5 {[%clk 0:02:59]} 3. Nd2 {[%clk 0:03:01]}  dxe4 {[%clk 0:02:59]} 4. Nxe4 {[%clk 0:03:01]}  Nf6 {[%clk 0:02:59]} 5. Nxf6+ {[%clk 0:03:01]}  exf6 {[%clk 0:03:00]} 6. Nf3 {[%clk 0:03:02]}  Bd6 {[%clk 0:02:59]} 7. Be2 {[%clk 0:03:02]}  O-O {[%clk 0:02:59]} 8. Be3 {[%clk 0:03:03]}  Bg4 {[%clk 0:02:55]} 9. Qd2 {[%clk 0:03:03]}  Nd7 {[%clk 0:02:52]} 10. h3 {[%clk 0:03:04]}  Bh5 {[%clk 0:02:51]} 11. g4 {[%clk 0:03:03]}  Bg6 {[%clk 0:02:51]} 12. O-O-O {[%clk 0:03:04]}  a5 {[%clk 0:02:46]} 13. h4 {[%clk 0:03:03]}  b5 {[%clk 0:02:43]} 14. Bd3 {[%clk 0:02:52]}  Nb6 {[%clk 0:02:36]} 15. h5 {[%clk 0:02:50]}  Bxd3 {[%clk 0:02:33]} 16. Qxd3 {[%clk 0:02:51]}  h6 {[%clk 0:02:31]} 17. Nh4 {[%clk 0:02:48]}  Nc4 {[%clk 0:02:24]} 18. Nf5 {[%clk 0:02:47]}  Re8 {[%clk 0:02:18]} 19. Bxh6 {[%clk 0:02:42]}  Bf8 {[%clk 0:02:09]} 20. Bf4 {[%clk 0:02:38]}  a4 {[%clk 0:01:54]} 21. Rdg1 {[%clk 0:02:35]}  a3 {[%clk 0:01:41]} 22. b3 {[%clk 0:02:34]}  Qd5 {[%clk 0:01:24]} 23. bxc4 {[%clk 0:02:22]}  bxc4 {[%clk 0:01:24]} 24. Qc3 {[%clk 0:02:20]}  Reb8 {[%clk 0:01:16]} 25. Bxb8 {[%clk 0:02:18]}  Rxb8 {[%clk 0:01:15]} 26. h6 {[%clk 0:02:06]}  g6 {[%clk 0:01:04]} 27. h7+ {[%clk 0:02:04]}  Kh8 {[%clk 0:01:00]} 28. Ne3 {[%clk 0:02:05]}  Qb5 {[%clk 0:00:55]} 29. d5 {[%clk 0:02:01]}  cxd5 {[%clk 0:00:45]} 30. Nf5 {[%clk 0:01:48]}  gxf5 {[%clk 0:00:26]} 31. gxf5 {[%clk 0:01:36]}  d4 {[%clk 0:00:26]} 32. Qxd4 {[%clk 0:01:32]}  Qxf5 {[%clk 0:00:25]} 33. Rg8# {[%clk 0:01:31]} 1-0


[Site "https://www.chess.com"]

[Event "Titled Tuesday Blitz June 21 Late 2022"]
[White "Harvey, Marcus R"]
[Black "Romero Ruscalleda, Josep"]
[WhiteFideId "400092"]
[BlackFideId "2231859"]
[WhiteElo "2485"]
[BlackElo "2379"]
[Result "1/2-1/2"]
[Round "09"]
[TimeControl "180+1"]
[Date "2022.06.22"]
[WhiteClock "0:00:04"]
[BlackClock "0:00:03"]

1. f4 {[%clk 0:03:00]}  g6 {[%clk 0:03:00]} 2. e4 {[%clk 0:02:59]}  Bg7 {[%clk 0:03:01]} 3. d4 {[%clk 0:02:59]}  d6 {[%clk 0:03:01]} 4. Nc3 {[%clk 0:02:57]}  a6 {[%clk 0:03:01]} 5. a4 {[%clk 0:02:55]}  Nc6 {[%clk 0:03:01]} 6. Be3 {[%clk 0:02:54]}  e5 {[%clk 0:03:00]} 7. fxe5 {[%clk 0:02:51]}  dxe5 {[%clk 0:03:00]} 8. d5 {[%clk 0:02:52]}  Nd4 {[%clk 0:03:01]} 9. Nge2 {[%clk 0:02:45]}  Bg4 {[%clk 0:02:49]} 10. h3 {[%clk 0:02:39]}  Bxe2 {[%clk 0:02:40]} 11. Nxe2 {[%clk 0:02:39]}  Qh4+ {[%clk 0:02:39]} 12. Kd2 {[%clk 0:01:31]}  Qxe4 {[%clk 0:02:25]} 13. Nc3 {[%clk 0:01:31]}  Qh4 {[%clk 0:02:25]} 14. Qe1 {[%clk 0:01:23]}  Qxe1+ {[%clk 0:02:15]} 15. Rxe1 {[%clk 0:01:24]}  O-O-O {[%clk 0:02:15]} 16. Bc4 {[%clk 0:01:19]}  Nh6 {[%clk 0:02:11]} 17. Kc1 {[%clk 0:01:04]}  Nhf5 {[%clk 0:02:10]} 18. Bf2 {[%clk 0:01:04]}  h5 {[%clk 0:02:00]} 19. g4 {[%clk 0:00:50]}  hxg4 {[%clk 0:01:57]} 20. hxg4 {[%clk 0:00:51]}  Nd6 {[%clk 0:01:50]} 21. Ba2 {[%clk 0:00:51]}  f5 {[%clk 0:01:45]} 22. gxf5 {[%clk 0:00:51]}  gxf5 {[%clk 0:01:44]} 23. Bxd4 {[%clk 0:00:41]}  exd4 {[%clk 0:01:43]} 24. Ne2 {[%clk 0:00:41]}  Bh6+ {[%clk 0:01:31]} 25. Kb1 {[%clk 0:00:37]}  Be3 {[%clk 0:01:31]} 26. Bb3 {[%clk 0:00:34]}  Rdg8 {[%clk 0:01:26]} 27. Rxh8 {[%clk 0:00:19]}  Rxh8 {[%clk 0:01:25]} 28. Rd1 {[%clk 0:00:20]}  Rh4 {[%clk 0:01:23]} 29. Ka2 {[%clk 0:00:18]}  b6 {[%clk 0:01:22]} 30. Rd3 {[%clk 0:00:16]}  Kd7 {[%clk 0:01:14]} 31. c3 {[%clk 0:00:15]}  f4 {[%clk 0:01:03]} 32. Nxd4 {[%clk 0:00:15]}  Rh2 {[%clk 0:01:03]} 33. Nf3 {[%clk 0:00:12]}  Rf2 {[%clk 0:01:01]} 34. Ne5+ {[%clk 0:00:11]}  Ke7 {[%clk 0:01:01]} 35. Kb1 {[%clk 0:00:08]}  Ne4 {[%clk 0:00:58]} 36. Bc2 {[%clk 0:00:04]}  Kd6 {[%clk 0:00:42]} 37. Ng4 {[%clk 0:00:04]}  Rf1+ {[%clk 0:00:41]} 38. Ka2 {[%clk 0:00:04]}  Re1 {[%clk 0:00:35]} 39. Rd1 {[%clk 0:00:02]}  Rxd1 {[%clk 0:00:32]} 40. Bxd1 {[%clk 0:00:03]}  Kxd5 {[%clk 0:00:31]} 41. Bf3 {[%clk 0:00:03]}  b5 {[%clk 0:00:22]} 42. Nf6+ {[%clk 0:00:03]}  Ke5 {[%clk 0:00:22]} 43. Nxe4 {[%clk 0:00:04]}  bxa4 {[%clk 0:00:23]} 44. Ka3 {[%clk 0:00:04]}  Bc1 {[%clk 0:00:21]} 45. Nf2 {[%clk 0:00:05]}  Kf5 {[%clk 0:00:19]} 46. Nd3 {[%clk 0:00:05]}  Bd2 {[%clk 0:00:19]} 47. Kxa4 {[%clk 0:00:06]}  Kg5 {[%clk 0:00:19]} 48. Ka5 {[%clk 0:00:06]}  Kh4 {[%clk 0:00:20]} 49. Kxa6 {[%clk 0:00:06]}  Kg3 {[%clk 0:00:20]} 50. Bc6 {[%clk 0:00:07]}  f3 {[%clk 0:00:20]} 51. Bxf3 {[%clk 0:00:07]}  Kxf3 {[%clk 0:00:20]} 52. Nc5 {[%clk 0:00:06]}  Ke2 {[%clk 0:00:19]} 53. Na4 {[%clk 0:00:06]}  Kd3 {[%clk 0:00:19]} 54. Kb7 {[%clk 0:00:06]}  Kc4 {[%clk 0:00:19]} 55. Kc6 {[%clk 0:00:06]}  Kb3 {[%clk 0:00:18]} 56. Kb5 {[%clk 0:00:06]}  c6+ {[%clk 0:00:17]} 57. Ka5 {[%clk 0:00:07]}  Bc1 {[%clk 0:00:13]} 58. Nb6 {[%clk 0:00:03]}  Be3 {[%clk 0:00:12]} 59. c4 {[%clk 0:00:02]}  Kxb2 {[%clk 0:00:10]} 60. Na4+ {[%clk 0:00:02]}  Kb3 {[%clk 0:00:09]} 61. c5 {[%clk 0:00:02]}  Kc4 {[%clk 0:00:08]} 62. Kb6 {[%clk 0:00:03]}  Kd5 {[%clk 0:00:08]} 63. Nc3+ {[%clk 0:00:02]}  Kc4 {[%clk 0:00:06]} 64. Na4 {[%clk 0:00:03]}  Kd5 {[%clk 0:00:06]} 65. Nc3+ {[%clk 0:00:03]}  Kc4 {[%clk 0:00:06]} 66. Ne4 {[%clk 0:00:03]}  Kd5 {[%clk 0:00:02]} 67. Nf6+ {[%clk 0:00:03]}  Kc4 {[%clk 0:00:02]} 68. Nd7 {[%clk 0:00:03]}  Bxc5+ {[%clk 0:00:03]} 69. Kxc6 {[%clk 0:00:04]} 1/2-1/2


[Site "https://www.chess.com"]